fUSD/lending_fUSD_20260405
["ID","MTS","AMOUNT","RATE_DAILY","PERIOD"]
[419822574,1775399438076,-150.0,8.422e-05,2]
[419822575,1775399438086,-255.51004428,8.437e-05,2]
[419822576,1775399438096,-1275.37,8.441e-05,2]
[419822577,1775399438106,-8606.1,8.456e-05,2]
[419822578,1775399438117,-1927.0845,8.493e-05,2]
[419822579,1775399438127,-500.0,8.503e-05,2]
[419822580,1775399438136,-500.0,8.503e-05,2]
[419822581,1775399438146,-150.0,8.503e-05,2]
[419822582,1775399438156,-500.0,8.503e-05,2]
[419822583,1775399438166,-500.0,8.503e-05,2]
[419822584,1775399438176,-500.0,8.503e-05,2]
[419822585,1775399438186,-500.0,8.503e-05,2]
[419822586,1775399438196,-500.0,8.503e-05,2]
[419822587,1775399438206,-500.0,8.503e-05,2]
[419822588,1775399438216,-199.90943792,8.503e-05,2]
[419822589,1775399438226,-500.0,8.503e-05,2]
[419822590,1775399438236,-167.72212086,8.503e-05,2]
[419822591,1775399438246,-500.25334159,8.503e-05,2]
[419822592,1775399438256,-166.14118016,8.503e-05,2]
[419822593,1775399438265,-500.0,8.503e-05,2]
[419822595,1775399438275,-500.0,8.503e-05,2]
[419822597,1775399438285,-500.0,8.503e-05,2]
[419822599,1775399438296,-500.0,8.503e-05,2]
[419822601,1775399438307,-1000.0,8.521e-05,2]
[419822603,1775399438316,-500.0,8.521e-05,2]
[419822605,1775399438326,-150.0,8.521e-05,2]
[419822606,1775399438336,-1000.0,8.521e-05,2]
[419822607,1775399438346,-1000.0,8.521e-05,2]
[419822608,1775399438356,-1361.56,8.521e-05,2]
[419822609,1775399438366,-500.0,8.522e-05,2]
[419822610,1775399438375,-500.0,8.795e-05,2]
[419822611,1775399438386,-1361.56,8.795e-05,2]
[419822612,1775399438396,-159.0,8.837e-05,2]
[419822613,1775399438406,-289.0,8.854e-05,2]
[419822614,1775399438415,-396.0,8.872e-05,2]
[419822615,1775399438426,-1239.32720083,8.909e-05,2]
[419822616,1775399438436,-5379.83,8.909e-05,2]
[419822617,1775399438451,-9999.99,8.917e-05,2]
[419822618,1775399438471,-299.99,8.917e-05,2]
[419822619,1775399438489,-1060.0,8.968e-05,2]
[419822620,1775399438500,-703.0,8.986e-05,2]
[419822621,1775399438510,-1584.0,9.004e-05,2]
[419822622,1775399438520,-597.0,9.022e-05,2]
[419822623,1775399438530,-1046.0,9.039e-05,2]
[419822624,1775399438540,-9999.99,9.051e-05,2]
[419822625,1775399438550,-2459.19,9.051e-05,2]
[419822626,1775399438559,-999.99,9.051e-05,2]
[419822627,1775399438569,-9999.99,9.051e-05,2]
[419822628,1775399438579,-1905.86,9.051e-05,2]
[419822629,1775399438588,-150.99,9.051e-05,2]
[419822630,1775399438600,-150.99,9.051e-05,2]
[419822631,1775399438610,-8462.06,9.051e-05,2]
[419822632,1775399438621,-9999.99,9.051e-05,2]
[419822633,1775399438631,-3209.4,9.051e-05,2]
[419822634,1775399438640,-351.47,9.051e-05,2]
[419822635,1775399438651,-501.14299175,9.051e-05,2]
[419822636,1775399438662,-1000.0,9.051e-05,2]
[419822637,1775399438673,-704.20995808,9.051e-05,2]
[419822638,1775399438683,-1000.0,9.051e-05,2]
[419822639,1775399438695,-1000.0,9.051e-05,2]
[419822640,1775399438705,-1000.0,9.051e-05,2]
[419822641,1775399438715,-1000.0,9.051e-05,2]
[419822642,1775399438724,-1000.0,9.051e-05,2]
[419822643,1775399438734,-500.0,9.051e-05,2]
[419822644,1775399438744,-1000.0,9.051e-05,2]
[419822645,1775399438755,-1314.0,9.057e-05,2]
[419822646,1775399438765,-500.0,9.069e-05,2]
[419822647,1775399438775,-1361.56,9.069e-05,2]
[419822648,1775399438786,-150.0,9.075e-05,2]
[419822649,1775399438797,-503.0,9.075e-05,2]
[419822650,1775399438807,-906.0,9.093e-05,2]
[419822651,1775399438818,-150.0,9.094e-05,2]
[419822652,1775399438827,-150.0,9.094e-05,2]
[419822653,1775399438837,-1737.0,9.111e-05,2]
[419822654,1775399438847,-1723.0,9.129e-05,2]
[419822655,1775399438857,-797.0,9.147e-05,2]
[419822656,1775399438867,-379.0,9.165e-05,2]
[419822657,1775399438877,-420.0,9.242e-05,2]
[419822658,1775399438887,-376.0,9.242e-05,2]
[419822659,1775399438896,-1680.0,9.242e-05,2]
[419822660,1775399438906,-255.0,9.242e-05,2]
[419822661,1775399438916,-420.0,9.242e-05,2]
[419822662,1775399438927,-3608.47516561,9.262e-05,2]
[419822663,1775399438937,-250.0,9.262e-05,2]
[419822664,1775399438947,-5000.0,9.262e-05,2]
[419822665,1775399438957,-720.0,9.262e-05,2]
[419822666,1775399438967,-5000.0,9.262e-05,2]
[419822667,1775399438977,-250.0,9.262e-05,2]
[419822668,1775399438987,-193.0,9.262e-05,2]
[419822669,1775399438997,-290.25550646,9.263e-05,2]
[419822670,1775399439008,-500.0,9.343e-05,2]
[419822671,1775399439018,-1361.56,9.343e-05,2]
[419822672,1775399439027,-522.26,9.348e-05,2]
[419822673,1775399439037,-2000.0,9.352e-05,2]
[419822674,1775399439047,-1108.3186174,9.598e-05,2]
[419822675,1775399439057,-1500.0,9.598e-05,2]
[419822676,1775399439066,-1500.0,9.598e-05,2]
[419822677,1775399439077,-1500.0,9.598e-05,2]
[419822678,1775399439087,-1500.0,9.598e-05,2]
[419822679,1775399439096,-1500.0,9.598e-05,2]
[419822680,1775399439107,-1500.0,9.598e-05,2]
[419822681,1775399439117,-150.0,9.6e-05,2]
[419822682,1775399439126,-548.80709996,9.617e-05,2]
[419822683,1775399439136,-1361.56,9.617e-05,2]
[419822684,1775399439146,-29999.99,9.67e-05,2]
[419822685,1775399439156,-19999.99,9.67e-05,2]
[419822686,1775399439167,-9999.99,9.67e-05,2]
[419822687,1775399439177,-1361.56,9.891e-05,2]
[419822688,1775399439188,-179.80643111,0.0001,2]
[419822689,1775399439200,-1263.01405228,0.0001,2]
[419822690,1775399439210,-500.0,0.0001,2]
[419822691,1775399439221,-500.0,0.0001,2]
[419822692,1775399439231,-500.0,0.0001,2]
[419822693,1775399439241,-500.0,0.0001,2]
[419822694,1775399439250,-500.0,0.0001,2]
[419822695,1775399439262,-475.5204151,0.0001,2]
[419822696,1775399439273,-200.0,0.0001,2]
[419822697,1775399439284,-151.0,0.0001,2]
[419822698,1775399439294,-151.0,0.0001,2]
[419822699,1775399439304,-151.0,0.0001,2]
[419822700,1775399439314,-151.0,0.0001,2]
[419822701,1775399439324,-500.0,0.0001,2]
[419822702,1775399439334,-151.0,0.0001,2]
[419822703,1775399439345,-500.0,0.0001,2]
[419822704,1775399439355,-151.0,0.0001,2]
[419822705,1775399439365,-151.0,0.0001,2]
[419822706,1775399439375,-500.0,0.0001,2]
[419822707,1775399439386,-151.0,0.0001,2]
[419822708,1775399439398,-151.0,0.0001,2]
[419822709,1775399439411,-500.0,0.0001,2]
[419822710,1775399439421,-151.0,0.0001,2]
[419822711,1775399439431,-151.0,0.0001,2]
[419822712,1775399439443,-500.0,0.0001,2]
[419822713,1775399439453,-151.0,0.0001,2]
[419822714,1775399439463,-151.0,0.0001,2]
[419822715,1775399439473,-500.0,0.0001,2]
[419822716,1775399439483,-151.0,0.0001,2]
[419822717,1775399439492,-151.0,0.0001,2]
[419822718,1775399439502,-500.0,0.0001,2]
[419822719,1775399439512,-151.0,0.0001,2]
[419822720,1775399439523,-151.0,0.0001,2]
[419822721,1775399439532,-500.0,0.0001,2]
[419822722,1775399439543,-151.0,0.0001,2]
[419822723,1775399439553,-151.0,0.0001,2]
[419822724,1775399439564,-500.0,0.0001,2]
[419822725,1775399439574,-151.0,0.0001,2]
[419822726,1775399439585,-151.0,0.0001,2]
[419822727,1775399439595,-500.0,0.0001,2]
[419822728,1775399439605,-151.0,0.0001,2]
[419822729,1775399439615,-151.0,0.0001,2]
[419822730,1775399439624,-500.0,0.0001,2]
[419822731,1775399439634,-151.0,0.0001,2]
[419822732,1775399439645,-151.0,0.0001,2]
[419822733,1775399439656,-151.0,0.0001,2]
[419822734,1775399439676,-151.0,0.0001,2]
[419822735,1775399439687,-151.0,0.0001,2]
[419822736,1775399439697,-151.0,0.0001,2]
[419822737,1775399439707,-151.0,0.0001,2]
[419822738,1775399439717,-151.0,0.0001,2]
[419822739,1775399439728,-1386.78395259,0.0001,2]
[419822740,1775399439737,-151.0,0.0001,2]
[419822741,1775399439748,-1918.65220609,0.0001,2]
[419822742,1775399439759,-2000.0,0.00010146,2]
[419822743,1775399439769,-2000.0,0.00010146,2]
[419822744,1775399439781,-2008.06532933,0.00010146,2]
[419822745,1775399439792,-2000.0,0.00010146,2]
[419822746,1775399439802,-2013.22099072,0.00010146,2]
[419822747,1775399439811,-2000.0,0.00010146,2]
[419822748,1775399439821,-1361.56,0.00010165,2]
[419822749,1775399439831,-180.0,0.00010166,2]
[419822750,1775399439843,-2351.0,0.00010166,2]
[419822751,1775399439853,-433.0,0.00010166,2]
[419822752,1775399439863,-587.0,0.00010166,2]
[419822753,1775399439873,-600.0,0.00010401,2]
[419822754,1775399439883,-407.45,0.00010401,2]
[419822755,1775399439893,-385.3,0.00010411,2]
[419822756,1775399439903,-1361.56,0.00010439,2]
[419822757,1775399439913,-2000.0,0.00010521,2]
[419822758,1775399439923,-200.0,0.00010548,2]
[419822759,1775399439933,-1438.09495884,0.00010548,2]
[419822760,1775399439943,-2500.0,0.00010694,2]
[419822761,1775399439952,-2500.0,0.00010694,2]
[419822762,1775399439962,-341.5818023,0.00010694,2]
[419822763,1775399439972,-2500.0,0.00010694,2]
[419822765,1775399439982,-1361.56,0.00010713,2]
[419822766,1775399439992,-10286.07240035,0.000109,2]
[419822767,1775399440001,-10286.0724003,0.000109,2]
[419822768,1775399440011,-10286.0724003,0.000109,2]
[419822769,1775399440021,-500.0,0.00010959,2]
[419822770,1775399440031,-1361.56,0.00010987,2]
[419822771,1775399440040,-1244.1901,0.00010999,2]
[419822772,1775399440051,-734.88782899,0.00010999,2]
[419822773,1775399440060,-14036.26116848,0.00010999,2]
[419822774,1775399440071,-1002.69250428,0.00010999,2]
[419822775,1775399440080,-169.6725,0.00011,2]
[419822776,1775399440090,-500.0,0.00011073,2]
[419822777,1775399440100,-500.0,0.00011073,2]
[419822778,1775399440112,-500.0,0.00011073,2]
[419822779,1775399440122,-500.0,0.00011073,2]
[419822780,1775399440133,-200.0,0.00011096,2]
[419822781,1775399440143,-1491.30447232,0.00011096,2]
[419822782,1775399440153,-2662.5,0.00011099,2]
[419822783,1775399440163,-2662.5,0.00011099,2]
[419822784,1775399440173,-2662.5,0.00011099,2]
[419822785,1775399440183,-2662.5,0.00011099,2]
[419822786,1775399440193,-2662.5,0.00011099,2]
[419822787,1775399440203,-72823.15065876,0.00011099,2]
[419822788,1775399440213,-72823.1506587,0.00011099,2]
[419822789,1775399440224,-72823.1506587,0.00011099,2]
[419822790,1775399440235,-72823.1506587,0.00011099,2]
[419822791,1775399440246,-250.0,0.00011103,2]
[419822792,1775399440256,-3292.0,0.00011183,2]
[419822793,1775399440266,-736.0,0.00011183,2]
[419822794,1775399440275,-823.0,0.00011183,2]
[419822795,1775399440287,-165.3,0.00011233,2]
[419822796,1775399440297,-3000.0,0.00011242,2]
[419822797,1775399440308,-3000.0,0.00011242,2]
[419822798,1775399440319,-3000.0,0.00011242,2]
[419822799,1775399440329,-1361.56,0.00011261,2]
[419822800,1775399440339,-1361.67971614,0.00011535,2]
[419822801,1775399440350,-1000.0,0.00011621,2]
[419822802,1775399440361,-1000.0,0.00011621,2]
[419822803,1775399440371,-200.0,0.00011644,2]
[419822804,1775399440381,-1546.48273779,0.00011644,2]
[419822805,1775399440393,-2000.0,0.0001169,2]
[419822806,1775399440840,-10286.0724003,0.00011783,2]
[419822807,1775399440850,-536.47392718,0.0001179,2]
[419822808,1775399440860,-3012.47134075,0.0001179,2]
[419822809,1775399440870,-3500.0,0.0001179,2]
[419822810,1775399440880,-2000.0,0.00011829,2]
[419822811,1775399440890,-2000.0,0.00011829,2]
[419822812,1775399440900,-2000.0,0.00011829,2]
[419822813,1775399440910,-2000.0,0.00011829,2]
[419822814,1775399440920,-2000.0,0.00011829,2]
[419822815,1775399440930,-2000.0,0.00011829,2]
[419822816,1775399440940,-2000.0,0.00011829,2]
[419822817,1775399440950,-2000.0,0.00011829,2]
[419822818,1775399440959,-2000.0,0.00011829,2]
[419822819,1775399440969,-2000.0,0.00011829,2]
[419822820,1775399440979,-2000.0,0.00011829,2]
[419822821,1775399440989,-2000.0,0.00011829,2]
[419822822,1775399440999,-2000.0,0.00011888,2]
[419822823,1775399441008,-2000.0,0.00011888,2]
[419822824,1775399441018,-2000.0,0.00011888,2]
[419822825,1775399441028,-2000.0,0.00011888,2]
[419822826,1775399441037,-2000.0,0.00011888,2]
[419822827,1775399441047,-2000.0,0.00011888,2]
[419822828,1775399441056,-2000.0,0.00011888,2]
[419822829,1775399441065,-2000.0,0.00011888,2]
[419822830,1775399441074,-2000.0,0.00011888,2]
[419822831,1775399441084,-2000.0,0.00011888,2]
[419822832,1775399441094,-72823.1506587,0.00011897,2]
[419822833,1775399441104,-2000.0,0.00011904,2]
[419822834,1775399441114,-2000.0,0.00011904,2]
[419822835,1775399441124,-2000.0,0.00011904,2]
[419822836,1775399441134,-2000.0,0.00011904,2]
[419822837,1775399441143,-2000.0,0.00011904,2]
[419822838,1775399441153,-2000.0,0.00011904,2]
[419822839,1775399441163,-2000.0,0.00011904,2]
[419822840,1775399441173,-2000.0,0.00011904,2]
[419822841,1775399441183,-2000.0,0.00011904,2]
[419822842,1775399441193,-2000.0,0.00011904,2]
[419822843,1775399441207,-2000.0,0.00011904,2]
[419822844,1775399441217,-2000.0,0.00011904,2]
[419822845,1775399441227,-2000.0,0.00011904,2]
[419822846,1775399441237,-2000.0,0.00011904,2]
[419822847,1775399441247,-2000.0,0.00011904,2]
[419822848,1775399441257,-2000.0,0.00011904,2]
[419822849,1775399441266,-2000.0,0.00011904,2]
[419822850,1775399441276,-2000.0,0.00011904,2]
[419822851,1775399441286,-2000.0,0.00011904,2]
[419822852,1775399441297,-44622.78,0.00012055,2]
[419822853,1775399441306,-2981.48418188,0.00012115,2]
[419822854,1775399441317,-1263.01405228,0.00012161,2]
[419822855,1775399441327,-391.29868191,0.00012168,2]
[419822856,1775399441336,-1500.0,0.00012168,2]
[419822857,1775399441346,-200.0,0.00012192,2]
[419822858,1775399441357,-1603.70259909,0.00012192,2]
[419822859,1775399441366,-496.91403031,0.00012224,2]
[419822860,1775399441377,-1252.0,0.000123,2]
[419822861,1775399441387,-4609.0,0.00012301,2]
[419822862,1775399441397,-1152.0,0.00012301,2]
[419822863,1775399441407,-3971.62275228,0.00012338,2]
[419822864,1775399441417,-496.91403031,0.00012345,2]
[419822865,1775399441427,-191.9252,0.000124,2]
[419822866,1775399441437,-4518.955201,0.00012443,2]
[419822867,1775399441447,-496.91403031,0.00012466,2]
[419822868,1775399441457,-2789.754707,0.00012556,2]
[419822869,1775399441467,-72823.1506587,0.00012697,2]
[419822870,1775399441477,-2000.0,0.00012716,2]
[419822871,1775399441487,-174.60324019,0.00012739,2]
[419822872,1775399441497,-200.0,0.0001274,2]
[419822873,1775399441507,-1663.03959526,0.0001274,2]
[419822874,1775399441517,-10286.0724003,0.00012812,2]
[419822875,1775399441527,-2000.0,0.00012859,2]
[419822876,1775399441537,-3730.491962,0.00012876,2]
[419822877,1775399441548,-503.0,0.00013111,2]
[419822878,1775399441558,-4383.900251,0.00013139,2]
[419822879,1775399441567,-1007.13,0.00013151,2]
[419822880,1775399441578,-600.0,0.00013177,2]
[419822881,1775399441589,-407.45,0.00013177,2]
[419822882,1775399441601,-2500.0,0.00013264,2]
[419822883,1775399441611,-200.0,0.00013288,2]
[419822884,1775399441622,-1453.30363319,0.00013288,2]
[419822885,1775399441632,-11857.55625,0.00013424,2]
[419822886,1775399441642,-3240.0,0.00013425,2]
[419822887,1775399441653,-734.88782897,0.0001345,2]
[419822888,1775399441663,-14036.26116846,0.0001345,2]
[419822889,1775399441673,-1002.69250426,0.0001345,2]
[419822890,1775399441683,-1918.65220609,0.00013488,2]
[419822891,1775399441694,-72823.1506587,0.00013498,2]
[419822892,1775399441708,-6453.0,0.00013531,2]
[419822893,1775399441720,-483.0,0.00013531,2]
[419822894,1775399441730,-2129.0,0.00013535,2]
[419822895,1775399441740,-385.3,0.0001365,2]
[419822896,1775399441751,-150.0,0.00013674,2]
[419822897,1775399441762,-500.0,0.00013698,2]
[419822898,1775399441772,-497.49770464,0.00013698,2]
[419822899,1775399441782,-500.0,0.00013698,2]
[419822900,1775399441792,-500.0,0.00013698,2]
[419822901,1775399441802,-500.0,0.00013698,2]
[419822902,1775399441812,-500.0,0.00013698,2]
[419822903,1775399441822,-500.0,0.00013698,2]
[419822904,1775399441832,-500.0,0.00013698,2]
[419822905,1775399441843,-500.0,0.00013698,2]
[419822906,1775399441853,-500.0,0.00013698,2]
[419822907,1775399441863,-500.0,0.00013698,2]
[419822908,1775399441873,-500.0,0.00013698,2]
[419822909,1775399441883,-1268.28,0.00013698,2]
[419822910,1775399441893,-1268.28,0.00013698,2]
[419822911,1775399441903,-806.66,0.00013698,2]
[419822912,1775399441913,-1268.28,0.00013698,2]
[419822913,1775399441923,-806.66,0.00013698,2]
[419822914,1775399441938,-1268.28,0.00013698,2]
[419822915,1775399441948,-806.66,0.00013698,2]
[419822916,1775399441959,-1268.28,0.00013698,2]
[419822917,1775399441968,-806.66,0.00013698,2]
[419822918,1775399441978,-1268.28,0.00013698,2]
[419822919,1775399441988,-1268.28,0.00013698,2]
[419822920,1775399441999,-806.66,0.00013698,2]
[419822921,1775399442008,-806.66,0.00013698,2]
[419822922,1775399442018,-1268.28,0.00013698,2]
[419822923,1775399442029,-806.66,0.00013698,2]
[419822924,1775399442040,-1268.28,0.00013698,2]
[419822925,1775399442049,-806.66,0.00013698,2]
[419822926,1775399442060,-1268.28,0.00013698,2]
[419822927,1775399442070,-806.66,0.00013698,2]
[419822928,1775399442080,-1268.28,0.00013698,2]
[419822929,1775399442091,-806.66,0.00013698,2]
[419822930,1775399442101,-1268.28,0.00013698,2]
[419822931,1775399442111,-806.66,0.00013698,2]
[419822932,1775399442121,-1268.28,0.00013698,2]
[419822933,1775399442132,-806.66,0.00013698,2]
[419822934,1775399442142,-1268.28,0.00013698,2]
[419822935,1775399442153,-806.66,0.00013698,2]
[419822936,1775399442162,-1268.28,0.00013698,2]
[419822937,1775399442172,-806.66,0.00013698,2]
[419822938,1775399442182,-1268.28,0.00013698,2]
[419822939,1775399442192,-806.66,0.00013698,2]
[419822940,1775399442202,-1268.28,0.00013698,2]
[419822941,1775399442213,-806.66,0.00013698,2]
[419822942,1775399442224,-1268.28,0.00013698,2]
[419822943,1775399442235,-806.66,0.00013698,2]
[419822944,1775399442246,-1268.28,0.00013698,2]
[419822945,1775399442256,-806.66,0.00013698,2]
[419822946,1775399442266,-806.66,0.00013698,2]
[419822947,1775399442277,-500.0,0.00013698,2]
[419822948,1775399442287,-500.0,0.00013698,2]
[419822949,1775399442297,-500.0,0.00013698,2]
[419822950,1775399442307,-500.0,0.00013698,2]
[419822951,1775399442317,-500.0,0.00013698,2]
[419822952,1775399442327,-500.0,0.00013698,2]
[419822953,1775399442337,-276.79569788,0.00013698,2]
[419822954,1775399442347,-1249.03,0.00013698,2]
[419822955,1775399442357,-1249.03,0.00013698,2]
[419822956,1775399442366,-1249.03,0.00013698,2]
[419822957,1775399442376,-1249.03,0.00013698,2]
[419822958,1775399442386,-1249.03,0.00013698,2]
[419822959,1775399442396,-1249.03,0.00013698,2]
[419822960,1775399442406,-1249.03,0.00013698,2]
[419822961,1775399442416,-1249.03,0.00013698,2]
[419822962,1775399442426,-1249.03,0.00013698,2]
[419822963,1775399442436,-1249.03,0.00013698,2]
[419822964,1775399442446,-1249.03,0.00013698,2]
[419822965,1775399442456,-1249.03,0.00013698,2]
[419822966,1775399442467,-1249.03,0.00013698,2]
[419822967,1775399442478,-1249.03,0.00013698,2]
[419822968,1775399442488,-1249.03,0.00013698,2]
[419822969,1775399442498,-1249.03,0.00013698,2]
[419822970,1775399442509,-1249.03,0.00013698,2]
[419822972,1775399442520,-1249.03,0.00013698,2]
[419822974,1775399442530,-1249.03,0.00013698,2]
[419822975,1775399442539,-1249.03,0.00013698,2]
[419822977,1775399442549,-1249.03,0.00013698,2]
[419822979,1775399442559,-1249.03,0.00013698,2]
[419822981,1775399442569,-1249.03,0.00013698,2]
[419822983,1775399442578,-1249.17214758,0.00013698,2]
[419822984,1775399442588,-1122.33,0.00013698,2]
[419822985,1775399442598,-1122.33,0.00013698,2]
[419822987,1775399442607,-1122.33,0.00013698,2]
[419822989,1775399442617,-1122.33,0.00013698,2]
[419822990,1775399442627,-1122.33,0.00013698,2]
[419822991,1775399442636,-1122.33,0.00013698,2]
[419822992,1775399442646,-1122.33,0.00013698,2]
[419822993,1775399442656,-1122.33,0.00013698,2]
[419822994,1775399442666,-1122.33,0.00013698,2]
[419822995,1775399442676,-1122.33,0.00013698,2]
[419822996,1775399442685,-1122.33,0.00013698,2]
[419822997,1775399442695,-1122.33,0.00013698,2]
[419822998,1775399442705,-1122.33,0.00013698,2]
[419822999,1775399442715,-1122.33,0.00013698,2]
[419823000,1775399442724,-1122.33,0.00013698,2]
[419823001,1775399442734,-1122.33,0.00013698,2]
[419823002,1775399442744,-1122.33,0.00013698,2]
[419823003,1775399442753,-1122.33,0.00013698,2]
[419823004,1775399442763,-1122.33,0.00013698,2]
[419823005,1775399442773,-1122.33,0.00013698,2]
[419823006,1775399442785,-1122.33,0.00013698,2]
[419823007,1775399442796,-1122.33,0.00013698,2]
[419823008,1775399442806,-1122.33,0.00013698,2]
[419823009,1775399442816,-1122.48918003,0.00013698,2]
[419823010,1775399442826,-1233.74,0.00013698,2]
[419823011,1775399442836,-1233.74,0.00013698,2]
[419823012,1775399442846,-1233.74,0.00013698,2]
[419823013,1775399442858,-1233.74,0.00013698,2]
[419823014,1775399442868,-1233.74,0.00013698,2]
[419823015,1775399442878,-1233.74,0.00013698,2]
[419823016,1775399442888,-1233.74,0.00013698,2]
[419823017,1775399442898,-1233.74,0.00013698,2]
[419823018,1775399442908,-1233.74,0.00013698,2]
[419823019,1775399442917,-1233.74,0.00013698,2]
[419823020,1775399442927,-1233.74,0.00013698,2]
[419823021,1775399442937,-1233.74,0.00013698,2]
[419823022,1775399442946,-1233.74,0.00013698,2]
[419823023,1775399442956,-1233.74,0.00013698,2]
[419823024,1775399442965,-813.55,0.00013698,2]
[419823025,1775399442976,-813.55,0.00013698,2]
[419823026,1775399442986,-813.55,0.00013698,2]
[419823027,1775399442996,-813.55,0.00013698,2]
[419823028,1775399443005,-813.55,0.00013698,2]
[419823029,1775399443015,-813.55,0.00013698,2]
[419823030,1775399443025,-813.55,0.00013698,2]
[419823031,1775399443034,-813.55,0.00013698,2]
[419823032,1775399443044,-813.55,0.00013698,2]
[419823033,1775399443054,-813.55,0.00013698,2]
[419823034,1775399443064,-813.55,0.00013698,2]
[419823035,1775399443073,-813.55,0.00013698,2]
[419823036,1775399443084,-813.55,0.00013698,2]
[419823037,1775399443093,-813.55,0.00013698,2]
[419823038,1775399443103,-537.2,0.00013698,2]
[419823039,1775399443113,-537.2,0.00013698,2]
[419823040,1775399443123,-537.2,0.00013698,2]
[419823041,1775399443134,-537.2,0.00013698,2]
[419823042,1775399443143,-537.2,0.00013698,2]
[419823043,1775399443153,-537.2,0.00013698,2]
[419823044,1775399443163,-537.2,0.00013698,2]
[419823045,1775399443173,-537.2,0.00013698,2]
[419823046,1775399443183,-537.2,0.00013698,2]
[419823047,1775399443193,-537.2,0.00013698,2]
[419823048,1775399443203,-537.2,0.00013698,2]
[419823049,1775399443214,-537.2,0.00013698,2]
[419823050,1775399443224,-537.2,0.00013698,2]
[419823051,1775399443234,-537.2,0.00013698,2]
[419823052,1775399443244,-500.0,0.00013698,2]
[419823053,1775399443254,-500.0,0.00013698,2]
[419823054,1775399443264,-500.0,0.00013698,2]
[419823055,1775399443273,-500.0,0.00013698,2]
[419823056,1775399443283,-500.0,0.00013698,2]
[419823057,1775399443293,-500.0,0.00013698,2]
[419823058,1775399443304,-500.0,0.00013698,2]
[419823061,1775399443440,-500.0,0.00013698,2]
[419823063,1775399443450,-500.0,0.00013698,2]
[419823065,1775399443459,-500.0,0.00013698,2]
[419823066,1775399443470,-500.0,0.00013698,2]
[419823067,1775399443480,-500.0,0.00013698,2]
[419823068,1775399443489,-500.0,0.00013698,2]
[419823069,1775399443499,-500.0,0.00013698,2]
[419823070,1775399443508,-500.0,0.00013698,2]
[419823071,1775399443518,-520.65331997,0.00013698,2]
[419823072,1775399443528,-673.65,0.00013698,2]
[419823073,1775399443537,-673.65,0.00013698,2]
[419823074,1775399443547,-673.65,0.00013698,2]
[419823075,1775399443557,-673.65,0.00013698,2]
[419823076,1775399443567,-673.65,0.00013698,2]
[419823077,1775399443576,-673.65,0.00013698,2]
[419823078,1775399443586,-673.65,0.00013698,2]
[419823079,1775399443595,-673.65,0.00013698,2]
[419823080,1775399443605,-673.65,0.00013698,2]
[419823081,1775399443614,-673.65,0.00013698,2]
[419823082,1775399443624,-673.65,0.00013698,2]
[419823083,1775399443634,-673.65,0.00013698,2]
[419823084,1775399443643,-673.65,0.00013698,2]
[419823085,1775399443653,-673.65,0.00013698,2]
[419823086,1775399443664,-673.65,0.00013698,2]
[419823087,1775399443673,-673.65,0.00013698,2]
[419823088,1775399443683,-673.65,0.00013698,2]
[419823089,1775399443692,-673.65,0.00013698,2]
[419823090,1775399443702,-673.65,0.00013698,2]
[419823091,1775399443712,-673.65,0.00013698,2]
[419823092,1775399443723,-673.65,0.00013698,2]